fUST/lending_fUST_20251105
["ID","MTS","AMOUNT","RATE_DAILY","PERIOD"]
[393147821,1762285838668,-500.0,0.00019361,2]
[393147822,1762285838679,-500.0,0.00019361,2]
[393147823,1762285838691,-500.0,0.00019361,2]
[393147824,1762285838701,-500.0,0.00019361,2]
[393147825,1762285838710,-632.72535124,0.00019361,2]
[393147826,1762285838720,-500.0,0.00019361,2]
[393147827,1762285838730,-500.0,0.00019361,2]
[393147828,1762285838740,-500.0,0.00019361,2]
[393147829,1762285838749,-500.0,0.00019361,2]
[393147830,1762285838761,-500.0,0.00019361,2]
[393147831,1762285838772,-500.0,0.00019361,2]
[393147832,1762285838781,-500.0,0.00019361,2]
[393147833,1762285838791,-500.0,0.00019361,2]
[393147834,1762285838801,-500.0,0.00019361,2]
[393147835,1762285838811,-500.0,0.00019361,2]
[393147836,1762285838820,-500.0,0.00019361,2]
[393147837,1762285838830,-500.0,0.00019361,2]
[393147838,1762285838839,-500.0,0.00019361,2]
[393147839,1762285838850,-500.0,0.00019361,2]
[393147840,1762285838860,-500.0,0.00019361,2]
[393147841,1762285838869,-500.0,0.00019361,2]
[393147842,1762285838878,-500.0,0.00019361,2]
[393147843,1762285838888,-500.0,0.00019361,2]
[393147844,1762285838898,-500.0,0.00019361,2]
[393147845,1762285838907,-500.0,0.00019361,2]
[393147846,1762285838916,-500.0,0.00019361,2]
[393147847,1762285838926,-500.0,0.00019361,2]
[393147848,1762285838936,-500.0,0.00019361,2]
[393147849,1762285838945,-500.0,0.00019361,2]
[393147850,1762285838955,-500.0,0.00019361,2]
[393147851,1762285838965,-245.09841357,0.00019361,2]
[393147852,1762285838975,-500.0,0.00019361,2]
[393147853,1762285838985,-500.0,0.00019361,2]
[393147854,1762285838995,-500.0,0.00019361,2]
[393147855,1762285839006,-500.0,0.00019361,2]
[393147856,1762285839017,-500.0,0.00019361,2]
[393147857,1762285839027,-500.0,0.00019361,2]
[393147858,1762285839037,-500.0,0.00019361,2]
[393147859,1762285839046,-500.0,0.00019361,2]
[393147860,1762285839057,-500.0,0.00019361,2]
[393147861,1762285839067,-500.0,0.00019361,2]
[393147862,1762285839078,-500.0,0.00019361,2]
[393147863,1762285839087,-45.7787082,0.00019361,2]
[393147864,1762285839100,-454.2212918,0.00019361,2]
[393147865,1762285839111,-500.0,0.00019361,2]
[393147866,1762285839120,-500.0,0.00019361,2]
[393147867,1762285839132,-500.0,0.00019361,2]
[393147868,1762285839143,-550.0,0.00019361,2]
[393147869,1762285839153,-500.0,0.00019361,2]
[393147870,1762285839164,-500.0,0.00019361,2]
[393147871,1762285839175,-500.0,0.00019361,2]
[393147872,1762285839185,-500.0,0.00019361,2]
[393147873,1762285839195,-500.0,0.00019361,2]
[393147874,1762285839204,-500.0,0.00019361,2]
[393147875,1762285839215,-500.0,0.00019361,2]
[393147876,1762285839225,-500.0,0.00019361,2]
[393147877,1762285839235,-500.0,0.00019361,2]
[393147878,1762285839245,-500.0,0.00019361,2]
[393147879,1762285839255,-500.0,0.00019361,2]
[393147880,1762285839265,-500.0,0.00019361,2]
[393147881,1762285839275,-500.0,0.00019361,2]
[393147882,1762285839285,-500.0,0.00019361,2]
[393147883,1762285839295,-500.0,0.00019361,2]
[393147884,1762285839305,-500.0,0.00019361,2]
[393147885,1762285839315,-250.0,0.00019361,2]
[393147886,1762285839325,-500.0,0.00019361,2]
[393147887,1762285839336,-500.0,0.00019361,2]
[393147888,1762285839435,-500.0,0.00019361,2]
[393147889,1762285839446,-454.93008297,0.00019361,2]
[393147890,1762285839455,-500.0,0.00019361,2]
[393147891,1762285839464,-500.0,0.00019361,2]
[393147892,1762285839474,-500.0,0.00019361,2]
[393147893,1762285839483,-500.0,0.00019361,2]
[393147894,1762285839493,-500.0,0.00019361,2]
[393147895,1762285839503,-500.0,0.00019361,2]
[393147896,1762285839512,-500.0,0.00019361,2]
[393147897,1762285839522,-500.0,0.00019361,2]
[393147898,1762285839532,-500.0,0.00019361,2]
[393147899,1762285839541,-12.24605102,0.00019361,2]
[393147900,1762285839554,-337.75394898,0.00019361,2]
[393147901,1762285839563,-500.0,0.00019361,2]
[393147902,1762285839573,-500.0,0.00019361,2]
[393147903,1762285839583,-500.0,0.00019361,2]
[393147904,1762285839592,-500.0,0.00019361,2]
[393147905,1762285839601,-500.0,0.00019361,2]
[393147906,1762285839611,-426.54221918,0.00019361,2]
[393147919,1762285840978,-0.00092733,0.00019361,2]
[393147964,1762285844013,-73.45685349,0.00019361,2]
[393147965,1762285844023,-50000.0,0.00019362,2]
[393147966,1762285844032,-500.0,0.00019373,2]
[393147967,1762285844042,-500.0,0.00019373,2]
[393147968,1762285844052,-500.0,0.00019373,2]
[393147969,1762285844062,-281.1,0.00019378,2]
[393147970,1762285844072,-154.45,0.000194,2]
[393147971,1762285844081,-154.45,0.000194,2]
[393147972,1762285844090,-154.45,0.000194,2]
[393147973,1762285844100,-154.45,0.000194,2]
[393147974,1762285844109,-154.45,0.000194,2]
[393147975,1762285844118,-154.45,0.000194,2]
[393147976,1762285844127,-154.45,0.000194,2]
[393147977,1762285844138,-154.45,0.000194,2]
[393147978,1762285844148,-154.45,0.000194,2]
[393147979,1762285844157,-154.45,0.000194,2]
[393147980,1762285844166,-154.45,0.000194,2]
[393147981,1762285844176,-154.45,0.000194,2]
[393147982,1762285844185,-154.45,0.000194,2]
[393147983,1762285844194,-154.45,0.000194,2]
[393147984,1762285844204,-154.45,0.000194,2]
[393147985,1762285844213,-154.45,0.000194,2]
[393147986,1762285844222,-154.45,0.000194,2]
[393147987,1762285844231,-154.45,0.000194,2]
[393147988,1762285844240,-154.45,0.000194,2]
[393147989,1762285844250,-154.45,0.000194,2]
[393147990,1762285844260,-154.45,0.000194,2]
[393147991,1762285844269,-154.45,0.000194,2]
[393147992,1762285844279,-154.45,0.000194,2]
[393147993,1762285844288,-154.45,0.000194,2]
[393147994,1762285844296,-154.45,0.000194,2]
[393147995,1762285844306,-154.45,0.000194,2]
[393147996,1762285844315,-154.45,0.000194,2]
[393147997,1762285844324,-154.45,0.000194,2]
[393147998,1762285844333,-154.45,0.000194,2]
[393147999,1762285844343,-1178.04544267,0.00019638,2]
[393148000,1762285844352,-300.0,0.000197,2]
[393148001,1762285844361,-300.0,0.000197,2]
[393148002,1762285844370,-180.67479725,0.00019735,2]
[393148003,1762285844380,-324.88942042,0.00019735,2]
[393148004,1762285844392,-500.0,0.00019855,2]
[393148005,1762285844401,-500.0,0.00019855,2]
[393148006,1762285844410,-500.0,0.00019855,2]
[393148007,1762285844420,-500.0,0.00019855,2]
[393148008,1762285844429,-500.0,0.00019855,2]
[393148009,1762285844438,-213.59380327,0.00019856,2]
[393148010,1762285844448,-15375.4561423,0.00019857,2]
[393148011,1762285844457,-1000.0,0.00019921,2]
[393148012,1762285844466,-1000.0,0.00019921,2]
[393148013,1762285844475,-297.17,0.00020008,2]
[393148014,1762285844485,-3615.96555298,0.00020108,2]
[393148015,1762285844493,-500.0,0.00020108,2]
[393148016,1762285844502,-500.0,0.00020108,2]
[393148017,1762285844512,-300.0,0.00020252,2]
[393148018,1762285844521,-300.0,0.00020252,2]
[393148019,1762285844617,-300.0,0.00020252,2]
[393148020,1762285844628,-300.0,0.00020252,2]
[393148021,1762285844638,-300.0,0.00020252,2]
[393148022,1762285844647,-300.0,0.00020252,2]
[393148023,1762285844657,-300.0,0.00020252,2]
[393148024,1762285844666,-300.0,0.00020252,2]
[393148025,1762285844676,-300.0,0.00020252,2]
[393148026,1762285844689,-300.0,0.00020252,2]
[393148027,1762285844698,-300.0,0.00020252,2]
[393148028,1762285844708,-300.0,0.00020252,2]
[393148029,1762285844717,-300.0,0.00020252,2]
[393148030,1762285844727,-300.0,0.00020252,2]
[393148031,1762285844736,-300.0,0.00020252,2]
[393148032,1762285844745,-600.0,0.00020252,2]
[393148033,1762285844756,-562.19,0.000203,2]
[393148034,1762285844765,-500.0,0.00020468,2]
[393148035,1762285844774,-1500.0,0.00020468,2]
[393148036,1762285844783,-192.0206709,0.00020523,2]
[393148037,1762285844794,-9588.06818179,0.00020523,2]
[393148038,1762285844810,-569.8539678,0.00020523,2]
[393148039,1762285844821,-550.3615269,0.00020523,2]
[393148066,1762285846809,-500.0,0.00020523,2]
[393148068,1762285846820,-9303.99354379,0.00020523,2]
[393148069,1762285847020,-1242.48199279,0.00020523,2]
[393148070,1762285854292,578.32,0.0002098,10]
[393148073,1762285866351,481.93,0.00021907,10]
[393148077,1762285867037,11379.79,0.000221,7]
[393148090,1762285873709,589.00507306,0.00019151,2]
[393148097,1762285877012,401.61,0.00021907,10]
[393148108,1762285890002,334.67,0.00021281,10]
[393148109,1762285893412,720.0,0.00021722,20]
[393148110,1762285901832,278.89,0.00021281,10]
[393148111,1762285914533,232.41,0.00021281,10]
[393148112,1762285918574,1993.97004536,0.00037842,120]
[393148114,1762285927288,193.68,0.00021281,10]
[393148118,1762285938879,161.4,0.00021281,10]
[393148119,1762285949335,807.01,0.00021281,10]
[393148120,1762285955557,1000.0,0.00018554,2]
[393148121,1762285966175,288.83,0.00022,7]
[393148122,1762286004491,10241.81,0.00022,7]
[393148123,1762286022891,4272.77,0.00037842,30]
[393148124,1762286101648,259.94,0.00022,7]
[393148125,1762286141539,9217.63,0.00022,7]
[393148126,1762286173209,280.54872359,0.00018748,2]
[393148127,1762286175487,504.98770246,0.00018748,2]
[393148128,1762286177474,897.75591548,0.00018748,2]
[393148129,1762286179565,1402.74361793,0.00018748,2]
[393148130,1762286193341,270.36,0.00019121,2]
[393148131,1762286237797,233.95,0.00022,7]
[393148132,1762286277370,8295.87,0.00022,7]
[393148133,1762286305821,4564.74803861,0.00018483,2]
[393148134,1762286305850,2280.81348489,0.00018483,2]
[393148135,1762286373020,233.95,0.00022,7]
[393148136,1762286413917,7466.28,0.00022,7]
[393148146,1762286467596,158.46480561,0.00019155,2]
[393148148,1762286507361,187.16,0.00022,7]
[393148152,1762286549843,6719.65,0.00022,7]
[393148153,1762286551793,18389.62110527,0.00037831,120]
[393148155,1762286642036,168.44,0.00022,7]
[393148157,1762286686427,6047.69,0.00022,7]
[393148158,1762286688077,200.0,0.00019355,3]
[393148159,1762286762559,152.86865261,0.00022549,5]
[393148161,1762286777175,151.6,0.00022,7]
[393148162,1762286823247,5442.92,0.00022,7]
[393148175,1762286912359,151.6,0.00022,7]
[393148176,1762286940631,6232.63,0.0003783,20]
[393148177,1762286959331,4898.62,0.00022,7]
[393148179,1762287018611,433.300092,0.00013699,2]
[393148219,1762287031782,-263.0,0.00019255,2]
[393148221,1762287031792,-176.06505279,0.00019255,2]
[393148223,1762287031801,-158.46480561,0.00019256,2]
[393148225,1762287031810,-305.02935862,0.0001926,2]
[393148227,1762287031822,-618.13832791,0.0001926,2]
[393148230,1762287031833,-492.59946567,0.0001926,2]
[393148232,1762287031844,-508.65546831,0.0001926,2]
[393148335,1762287037683,-257.11551056,0.0001926,2]
[393148405,1762287041012,-450.10135321,0.0001926,2]
[393148406,1762287041022,-300.0,0.00019351,2]
[393148407,1762287041031,-1200.0,0.00019351,2]
[393148408,1762287041044,-494.99223144,0.00019351,2]
[393148409,1762287041054,-614.22396037,0.00019351,2]
[393148410,1762287041063,-500.0,0.00019351,2]
[393148411,1762287041071,-500.0,0.00019351,2]
[393148412,1762287041082,-500.0,0.00019351,2]
[393148413,1762287041091,-500.0,0.00019351,2]
[393148414,1762287041101,-500.0,0.00019351,2]
[393148415,1762287041111,-500.0,0.00019351,2]
[393148416,1762287041124,-500.0,0.00019351,2]
[393148417,1762287041134,-500.0,0.00019351,2]
[393148418,1762287041143,-500.0,0.00019351,2]
[393148419,1762287041152,-500.0,0.00019351,2]
[393148420,1762287041161,-500.0,0.00019351,2]
[393148421,1762287041171,-500.0,0.00019351,2]
[393148422,1762287041181,-500.0,0.00019351,2]
[393148423,1762287041190,-500.0,0.00019351,2]
[393148424,1762287041199,-500.0,0.00019351,2]
[393148425,1762287041209,-500.0,0.00019351,2]
[393148426,1762287041219,-500.0,0.00019351,2]
[393148427,1762287041228,-500.0,0.00019351,2]
[393148428,1762287041238,-500.0,0.00019351,2]
[393148429,1762287041248,-500.0,0.00019351,2]
[393148430,1762287041258,-500.0,0.00019351,2]
[393148431,1762287041267,-500.0,0.00019351,2]
[393148432,1762287041277,-500.0,0.00019351,2]
[393148433,1762287041287,-500.0,0.00019351,2]
[393148434,1762287041296,-500.0,0.00019351,2]
[393148435,1762287041306,-500.0,0.00019351,2]
[393148436,1762287041315,-500.0,0.00019351,2]
[393148437,1762287041325,-500.0,0.00019351,2]
[393148438,1762287041334,-500.0,0.00019351,2]
[393148439,1762287041343,-500.0,0.00019351,2]
[393148440,1762287041352,-500.0,0.00019351,2]
[393148441,1762287041362,-500.0,0.00019351,2]
[393148442,1762287041375,-500.0,0.00019351,2]
[393148443,1762287041385,-500.0,0.00019351,2]
[393148444,1762287041395,-500.0,0.00019351,2]
[393148445,1762287041405,-500.0,0.00019351,2]
[393148446,1762287041415,-500.0,0.00019351,2]
[393148447,1762287041424,-500.0,0.00019351,2]
[393148448,1762287041434,-500.0,0.00019351,2]
[393148449,1762287041444,-500.0,0.00019351,2]
[393148450,1762287041454,-500.0,0.00019351,2]
[393148451,1762287041465,-500.0,0.00019351,2]
[393148452,1762287041475,-500.0,0.00019351,2]
[393148453,1762287041485,-500.0,0.00019351,2]
[393148454,1762287041574,-500.0,0.00019351,2]
[393148455,1762287041584,-500.0,0.00019351,2]
[393148456,1762287041593,-500.0,0.00019351,2]
[393148457,1762287041602,-500.0,0.00019351,2]
[393148458,1762287041612,-500.0,0.00019351,2]
[393148459,1762287041624,-500.0,0.00019351,2]
[393148460,1762287041634,-500.0,0.00019351,2]
[393148461,1762287041643,-500.0,0.00019351,2]
[393148462,1762287041653,-500.0,0.00019351,2]
[393148463,1762287041662,-500.0,0.00019351,2]
[393148464,1762287041671,-500.0,0.00019351,2]
[393148465,1762287041680,-500.0,0.00019351,2]
[393148466,1762287041689,-500.0,0.00019351,2]
[393148467,1762287041698,-500.0,0.00019351,2]
[393148468,1762287041707,-500.0,0.00019351,2]
[393148469,1762287041715,-500.0,0.00019351,2]
[393148470,1762287041724,-538.59566244,0.00019351,2]
[393148471,1762287041734,-500.0,0.00019351,2]
[393148472,1762287041743,-500.0,0.00019351,2]
[393148473,1762287041752,-500.0,0.00019351,2]
[393148474,1762287041761,-500.0,0.00019351,2]
[393148475,1762287041770,-500.0,0.00019351,2]
[393148476,1762287041780,-500.0,0.00019351,2]
[393148477,1762287041789,-500.0,0.00019351,2]
[393148478,1762287041798,-500.0,0.00019351,2]
[393148479,1762287041807,-500.0,0.00019351,2]
[393148480,1762287041817,-500.0,0.00019351,2]
[393148481,1762287041827,-500.0,0.00019351,2]
[393148482,1762287041835,-500.0,0.00019351,2]
[393148483,1762287041844,-500.0,0.00019351,2]
[393148484,1762287041853,-500.0,0.00019351,2]
[393148485,1762287041862,-500.0,0.00019351,2]
[393148486,1762287041874,-500.0,0.00019351,2]
[393148487,1762287041883,-500.0,0.00019351,2]
[393148488,1762287041893,-500.0,0.00019351,2]
[393148489,1762287041902,-500.0,0.00019351,2]
[393148490,1762287041912,-500.0,0.00019351,2]
[393148491,1762287041921,-500.0,0.00019351,2]
[393148492,1762287041931,-500.0,0.00019351,2]
[393148493,1762287041940,-593.18298205,0.00019351,2]
[393148494,1762287041950,-500.0,0.00019351,2]
[393148495,1762287041959,-500.0,0.00019351,2]
[393148496,1762287041968,-500.0,0.00019351,2]
[393148497,1762287041978,-500.0,0.00019351,2]
[393148498,1762287041987,-500.0,0.00019351,2]
[393148499,1762287041996,-500.0,0.00019351,2]
[393148500,1762287042006,-500.0,0.00019351,2]
[393148501,1762287042015,-500.0,0.00019351,2]
[393148502,1762287042024,-500.0,0.00019351,2]
[393148503,1762287042035,-500.0,0.00019351,2]
[393148504,1762287042047,-500.0,0.00019351,2]
[393148505,1762287042056,-500.0,0.00019351,2]
[393148506,1762287042066,-500.0,0.00019351,2]
[393148507,1762287042076,-500.0,0.00019351,2]
[393148508,1762287042086,-500.0,0.00019351,2]
[393148509,1762287042096,-500.0,0.00019351,2]
[393148510,1762287042107,-500.0,0.00019351,2]
[393148511,1762287042119,-500.0,0.00019351,2]
[393148512,1762287042130,-500.0,0.00019351,2]
[393148513,1762287042140,-500.0,0.00019351,2]
[393148514,1762287042149,-500.0,0.00019351,2]
[393148515,1762287042159,-500.0,0.00019351,2]
[393148516,1762287042168,-500.0,0.00019351,2]
[393148517,1762287042178,-500.0,0.00019351,2]
[393148518,1762287042187,-500.0,0.00019351,2]
[393148519,1762287042197,-500.0,0.00019351,2]
[393148520,1762287042207,-500.0,0.00019351,2]
[393148521,1762287042216,-500.0,0.00019351,2]
[393148522,1762287042227,-500.0,0.00019351,2]
[393148523,1762287042236,-213.92938477,0.00019351,2]
[393148524,1762287042245,-500.0,0.00019351,2]
[393148525,1762287042254,-500.0,0.00019351,2]
[393148526,1762287042264,-500.0,0.00019351,2]
[393148527,1762287042273,-500.0,0.00019351,2]
[393148528,1762287042283,-500.0,0.00019351,2]
[393148529,1762287042293,-500.0,0.00019351,2]
[393148531,1762287042302,-500.0,0.00019351,2]
[393148533,1762287042312,-500.0,0.00019351,2]
[393148535,1762287042322,-500.0,0.00019351,2]
[393148537,1762287042332,-500.0,0.00019351,2]
[393148539,1762287042342,-500.0,0.00019351,2]
[393148541,1762287042351,-500.0,0.00019351,2]
[393148544,1762287042360,-500.0,0.00019351,2]
[393148546,1762287042371,-500.0,0.00019351,2]
[393148549,1762287042381,-500.0,0.00019351,2]
[393148553,1762287042390,-500.0,0.00019351,2]
[393148556,1762287042399,-500.0,0.00019351,2]
[393148557,1762287042409,-500.0,0.00019351,2]
[393148559,1762287042418,-379.1073329,0.00019351,2]
[393148561,1762287042428,-500.0,0.00019351,2]
[393148563,1762287042438,-500.0,0.00019351,2]
[393148566,1762287042447,-500.0,0.00019351,2]
[393148568,1762287042456,-500.0,0.00019351,2]
[393148569,1762287042466,-500.0,0.00019351,2]
[393148572,1762287042475,-500.0,0.00019351,2]
[393148576,1762287042485,-500.0,0.00019351,2]
[393148580,1762287042494,-500.0,0.00019351,2]
[393148584,1762287042504,-500.0,0.00019351,2]
[393148588,1762287042514,-500.0,0.00019351,2]
[393148591,1762287042523,-413.80078003,0.00019351,2]
[393148596,1762287042538,-86.19921997,0.00019351,2]
[393148599,1762287042547,-500.0,0.00019351,2]
[393148601,1762287042557,-500.0,0.00019351,2]
[393148604,1762287042567,-37703.30835543,0.00019353,2]
[393148645,1762287042907,-1625.51679819,0.00019353,2]
[393148731,1762287046213,-505.02073508,0.00019353,2]
[393148798,1762287047425,151.6,0.00022,7]
[393148800,1762287092391,176.171077,0.00018841,2]
[393148801,1762287096997,4898.63,0.00022,7]
[393148847,1762287173207,366.6304392,0.00018683,2]
[393148848,1762287182437,151.6,0.00022,7]
[393148849,1762287188980,210.39289623,0.00022549,5]
[393148852,1762287232614,4354.33,0.00022,7]
[393148865,1762287284785,211.4625768,0.00018362,2]
[393148866,1762287314238,234.34731725,0.00037825,30]
[393148867,1762287316764,151.6,0.00022,7]
[393148868,1762287335043,300.0,0.000184,2]
[393148869,1762287345672,300.0,0.000184,2]
[393148877,1762287356140,300.0,0.000184,2]
[393148878,1762287367796,3483.47,0.00022,7]
[393148879,1762287367929,300.0,0.000184,2]
[393148880,1762287378879,300.0,0.000184,2]
[393148882,1762287380514,179.89735417,0.0001871,2]
[393148883,1762287382639,205.59697619,0.0001871,2]
[393148885,1762287384709,320.92403002,0.0001871,2]
[393148886,1762287389335,300.0,0.000184,2]
[393148888,1762287392824,1218.558861,0.00018353,2]
[393149293,1762287450706,151.61,0.00022,7]
[393149461,1762287484095,188.91336972,0.0001871,2]
[393149473,1762287486908,215.90099396,0.0001871,2]
[393149474,1762287489207,337.00795776,0.0001871,2]
[393149475,1762287491308,-1200.0,0.0001935,2]
[393149476,1762287491334,-300.0,0.0001935,2]
[393149477,1762287491468,-179.10447067,0.00019351,2]
[393149478,1762287491493,-300.0,0.00019351,2]
[393149479,1762287491517,-300.0,0.00019351,2]
[393149480,1762287491541,-300.0,0.00019351,2]
[393149481,1762287491567,-300.0,0.00019351,2]
[393149482,1762287491592,-1200.0,0.00019351,2]
[393149483,1762287491616,-10587.8969524,0.00019352,2]
[393149484,1762287491640,-500.0,0.00019367,2]
[393149485,1762287491665,-275.80853084,0.00019367,2]
[393149486,1762287491689,-22868.23630306,0.00019367,2]
[393149504,1762287504215,3483.47,0.00022,7]
[393149555,1762287508401,151.0,0.00020548,7]
[393149561,1762287508802,151.0,0.00020548,7]
[393149662,1762287517813,266.92,0.00018842,2]
[393149778,1762287584938,151.61,0.00022,7]
[393150038,1762287609175,262.456814,0.00019745,7]
[393150039,1762287624071,17288.0747034,0.00018538,2]
[393150068,1762287640429,2786.77,0.00022,7]
[393150255,1762287710796,7236.825385,0.00018376,2]
[393150256,1762287718414,151.61,0.00022,7]
[393150262,1762287776468,2786.77,0.00022,7]
[393150265,1762287851368,151.61,0.00022,7]
[393150344,1762287912344,2229.42,0.00022,7]
[393150403,1762287948426,2478.47229048,0.00019268,2]
[393150442,1762287983287,949.3476607,0.00018663,2]
[393150443,1762287984537,151.61,0.00022,7]
[393150462,1762287992383,-286.08054983,0.00019355,2]
[393150471,1762288021779,-234.31441551,0.00019355,2]
[393150476,1762288047756,2006.48,0.00022,7]
[393150510,1762288055266,260000.0,0.00037822,20]
[393150575,1762288089995,2223.58758679,0.000125,2]
[393150593,1762288098616,848.95443,0.000176,2]
[393150638,1762288111562,2060.819113,0.00019,2]
[393150669,1762288119692,31037.17786832,0.00037822,30]
[393150769,1762288146564,151.0,0.000215,4]
[393150848,1762288184838,1805.83,0.00022,7]
[393151018,1762288236026,-300.0,0.00019355,2]
[393151020,1762288236037,-300.0,0.00019355,2]
[393151022,1762288236048,-1200.0,0.00019355,2]
[393151024,1762288236062,-266.0,0.00019355,2]
[393151026,1762288236072,-311.93724986,0.00019355,2]
[393151028,1762288236084,-188.06275014,0.00019355,2]
[393151030,1762288236094,-500.0,0.00019355,2]
[393151032,1762288236105,-500.0,0.00019355,2]
[393151034,1762288236114,-500.0,0.00019355,2]
[393151036,1762288236124,-500.0,0.00019355,2]
[393151038,1762288236133,-500.0,0.00019355,2]
[393151039,1762288236142,-500.0,0.00019355,2]
[393151041,1762288236152,-500.0,0.00019355,2]
[393151043,1762288236161,-500.0,0.00019355,2]
[393151045,1762288236171,-500.0,0.00019355,2]
[393151047,1762288236180,-500.0,0.00019355,2]
[393151049,1762288236190,-500.0,0.00019355,2]
[393151051,1762288236199,-500.0,0.00019355,2]
[393151052,1762288236213,-528.13843328,0.00019355,2]
[393151054,1762288236222,-500.0,0.00019355,2]
[393151056,1762288236232,-500.0,0.00019355,2]
[393151058,1762288236241,-500.0,0.00019355,2]
[393151060,1762288236254,-500.0,0.00019355,2]
[393151062,1762288236263,-500.0,0.00019355,2]
[393151064,1762288236273,-500.0,0.00019355,2]
[393151066,1762288236283,-500.0,0.00019355,2]
[393151068,1762288236292,-500.0,0.00019355,2]
[393151070,1762288236301,-500.0,0.00019355,2]
[393151071,1762288236311,-500.0,0.00019355,2]
[393151073,1762288236321,-500.0,0.00019355,2]
[393151075,1762288236331,-500.0,0.00019355,2]
[393151077,1762288236341,-210.30074912,0.00019355,2]
[393151079,1762288236351,-500.0,0.00019355,2]
[393151081,1762288236361,-500.0,0.00019355,2]
[393151083,1762288236372,-650.0,0.00019355,2]
[393151084,1762288236383,-500.0,0.00019355,2]
[393151085,1762288236395,-500.0,0.00019355,2]
[393151087,1762288236405,-500.0,0.00019355,2]
[393151089,1762288236415,-500.0,0.00019355,2]
[393151091,1762288236423,-500.0,0.00019355,2]
[393151092,1762288236434,-500.0,0.00019355,2]
[393151094,1762288236444,-500.0,0.00019355,2]
[393151096,1762288236457,-500.0,0.00019355,2]
[393151098,1762288236469,-500.0,0.00019355,2]
[393151100,1762288236478,-500.0,0.00019355,2]
[393151102,1762288236489,-396.29806746,0.00019355,2]
[393151103,1762288236502,-103.70193254,0.00019355,2]
[393151112,1762288236512,-500.0,0.00019355,2]
[393151113,1762288236614,-1000.0,0.00019355,2]
[393151115,1762288236624,-596.40014418,0.00019355,2]
[393151120,1762288236661,-403.59985582,0.00019355,2]
[393151121,1762288236671,-448.81935217,0.00019355,2]
[393151123,1762288236683,-551.18064783,0.00019355,2]
[393151125,1762288236693,-1000.0,0.00019355,2]
[393151127,1762288236706,-1000.0,0.00019355,2]
[393151129,1762288236715,-1000.0,0.00019355,2]
[393151131,1762288236727,-1000.0,0.00019355,2]
[393151133,1762288236736,-1000.0,0.00019355,2]
[393151135,1762288236746,-1000.0,0.00019355,2]
[393151137,1762288236754,-1000.0,0.00019355,2]
[393151139,1762288236764,-1000.0,0.00019355,2]
[393151141,1762288236775,-1000.0,0.00019355,2]
[393151143,1762288236784,-966.6225507,0.00019355,2]
[393151145,1762288236794,-175.52238126,0.00019355,2]